bitfinex/quotes_SOLUSD_20241117
["timestamp","ask_amount","ask_price","bid_price","bid_amount"]
[1731887238378,0.09367462,236.71,236.68,10.5627]
[1731887238678,0.12549,236.72,236.68,10.5627]
[1731887239162,10.28734497,236.73,236.68,10.5627]
[1731887240448,10.28734497,236.77,236.69,10.28734497]
[1731887240750,10.28734497,236.86,236.75,10.28734497]
[1731887240959,10.28734497,236.86,236.78,10.28734497]
[1731887241170,0.09367462,236.85,236.78,10.28734497]
[1731887241648,10.28734497,236.86,236.78,10.28734497]
[1731887242049,20.0,236.85,236.78,10.28734497]
[1731887242250,0.09367462,236.84,236.78,10.28734497]
[1731887242451,0.09367462,236.82,236.74,14.7841]
[1731887242769,0.09367462,236.82,236.74,25.07144497]
[1731887242977,0.12549,236.81,236.74,25.07144497]
[1731887243161,10.50650959,236.78,236.74,10.5601]
[1731887243355,10.53832497,236.82,236.74,14.7841]
[1731887243675,0.21916462,236.8,236.74,25.07144497]
[1731887244380,20.0,236.81,236.74,25.07144497]
[1731887244548,10.28734497,236.87,236.78,10.28734497]
[1731887245874,20.34465462,236.86,236.79,4.2231]
[1731887246260,36.77837993,236.86,236.79,4.2231]
[1731887247575,162.3,236.92,236.83,22.4756]
[1731887247576,16.43372531,236.9,236.83,22.4756]
[1731887247877,24.027864,236.91,236.83,22.4756]
[1731887248078,0.09367462,236.9,236.83,22.4756]
[1731887248778,0.09367462,236.88,236.83,22.4756]
[1731887248984,36.43372531,236.9,236.83,22.4756]
[1731887249477,0.21916462,236.89,236.83,22.4756]
[1731887249782,16.43372531,236.88,236.83,26.6979]
[1731887250078,20.34465462,236.85,236.83,22.4756]
[1731887250281,4.2214,236.89,236.74,21.1202]
[1731887250282,44.12153862,236.83,236.77,22.4756]
[1731887250581,0.21916462,236.79,236.77,22.4756]
[1731887252864,15.90045793,236.8,236.77,22.4756]
[1731887256482,16.43372531,236.78,236.74,10.5596]
[1731887256665,20.0,236.77,236.74,10.5596]
[1731887256866,20.0,236.77,236.74,14.7836]
[1731887257159,20.0,236.77,236.74,10.5596]
[1731887258482,16.43372531,236.78,236.74,10.5596]
[1731887258684,16.77837993,236.8,236.74,10.5596]
[1731887258870,20.0,236.79,236.74,10.5596]
[1731887259267,16.77837993,236.78,236.74,10.5596]
[1731887259473,16.77837993,236.78,236.72,4.2244]
[1731887259674,16.43372531,236.76,236.72,4.2244]
[1731887260460,16.43372531,236.74,236.71,6.329]
[1731887260683,20.0,236.77,236.71,21.1148]
[1731887261190,0.12549,236.81,236.74,16.43372531]
[1731887261374,16.43372531,236.84,236.76,16.43372531]
[1731887261684,0.09367462,236.83,236.76,16.43372531]
[1731887262572,16.43372531,236.84,236.77,4.2235]
[1731887262993,20.09367462,236.83,236.77,4.2235]
[1731887263688,20.0,236.81,236.77,4.2235]
[1731887264076,0.25098,236.8,236.76,10.559]
[1731887264287,20.0,236.81,236.76,14.7826]
[1731887264794,16.43372531,236.82,236.76,14.7826]
[1731887265177,20.0,236.81,236.76,14.7826]
[1731887267582,20.0,236.81,236.76,10.559]
[1731887268191,4.2209,236.92,236.79,16.6038397]
[1731887268396,10.2748397,236.95,236.85,10.2748397]
[1731887268615,10.2748397,236.93,236.85,10.2748397]
[1731887268902,0.09367462,236.92,236.83,10.2748397]
[1731887269268,10.2748397,236.93,236.85,10.2748397]
[1731887269696,20.0,236.92,236.85,10.2748397]
[1731887269897,10.2748397,236.91,236.83,10.2748397]
[1731887270077,10.2748397,236.91,236.81,10.2748397]
[1731887270474,10.2748397,236.91,236.83,10.2748397]
[1731887271475,10.2748397,236.91,236.84,14.7778]
[1731887272491,20.25098,236.92,236.85,10.2748397]
[1731887272687,0.12549,236.94,236.85,10.2748397]
[1731887272895,20.25098,236.94,236.85,10.2748397]
[1731887273099,0.09367462,236.93,236.85,10.2748397]
[1731887273480,0.21916462,236.93,236.86,14.7766]
[1731887275200,10.61949432,236.89,236.86,10.5547]
[1731887275402,20.0,236.9,236.86,10.5547]
[1731887275582,20.0,236.9,236.83,10.2748397]
[1731887276392,10.2748397,236.91,236.83,10.2748397]
[1731887276597,20.0,236.9,236.83,10.2748397]
[1731887276798,20.0,236.9,236.84,14.7778]
[1731887277002,10.61949432,236.89,236.84,14.7778]
[1731887278691,10.61949432,236.89,236.84,10.5556]
[1731887278898,10.2748397,236.87,236.82,4.2226]
[1731887279986,10.2748397,236.87,236.8,14.7803]
[1731887280298,10.2748397,236.93,236.86,10.2748397]
[1731887280983,10.2748397,236.95,236.87,6.5278]
[1731887281474,10.2748397,236.97,236.88,10.2748397]
[1731887281894,0.09367462,236.96,236.88,10.2748397]
[1731887282100,10.2748397,236.95,236.89,4.2213]
[1731887282282,0.09367462,236.98,236.9,10.2748397]
[1731887282495,10.36851432,236.98,236.91,16.1752]
[1731887282806,0.09367462,236.96,236.91,16.1752]
[1731887283104,0.25098,236.97,236.91,16.1752]
[1731887283686,10.2748397,236.96,236.91,16.1752]
[1731887284020,10.2748397,236.93,236.91,16.1752]
[1731887284483,30.2748397,236.95,236.91,16.1752]
[1731887284686,0.09367462,236.94,236.91,16.1752]
[1731887285016,10.2748397,236.92,236.91,16.1752]
[1731887285302,20.0,236.93,236.91,16.1752]
[1731887285503,20.25098,236.95,236.91,20.3961]
[1731887287409,10.2748397,236.96,236.91,20.3961]
[1731887287410,10.2748397,236.98,236.91,20.3961]
[1731887287614,20.12549,236.97,236.91,30.9486]
[1731887287786,162.3,237.07,236.94,10.2748397]
[1731887287986,0.2,237.1,236.94,10.2748397]
[1731887287987,0.09367462,237.02,236.94,10.2748397]
[1731887288393,10.2748397,237.03,236.94,10.2748397]
[1731887288594,10.2748397,237.04,236.96,10.2748397]
[1731887288798,0.09367462,237.03,236.96,10.2748397]
[1731887289199,20.09367462,237.03,236.97,4.2199]
[1731887289690,10.5258197,237.02,236.97,4.2199]
[1731887290317,10.5258197,237.02,236.96,10.5502]
[1731887291795,10.2748397,236.97,236.92,6.5128]
[1731887292310,20.0,236.98,236.92,10.7335]
[1731887292897,20.0,236.98,236.92,21.2855]
[1731887293094,10.2748397,236.99,236.92,21.2855]
[1731887293300,20.0,236.98,236.92,21.2855]
[1731887293504,10.2748397,236.99,236.92,21.2855]
[1731887297309,10.2748397,236.99,236.92,31.5603397]
[1731887301601,10.2748397,237.01,236.94,10.2748397]
[1731887301808,20.0,237.02,236.94,10.2748397]
[1731887302327,10.2748397,237.0,236.93,10.2748397]
[1731887302524,10.2748397,237.0,236.92,42.3896]
[1731887303025,10.2748397,237.0,236.93,10.2748397]
[1731887304121,10.2748397,236.98,236.92,21.2855]
[1731887304324,10.2748397,236.94,236.92,6.5128]
[1731887304529,20.34465462,236.93,236.86,21.9509]
[1731887304826,10.2748397,236.9,236.86,21.9509]
[1731887305015,10.2748397,236.88,236.86,21.9509]
[1731887306719,10.2748397,236.88,236.73,0.1]
[1731887306720,44.12153862,236.87,236.78,36.9497]
[1731887306926,10.2748397,236.83,236.78,36.9497]
[1731887310230,10.2748397,236.79,236.78,22.1684]
[1731887311022,10.2748397,236.81,236.78,22.1684]
[1731887311222,10.2748397,236.81,236.79,4.2231]
[1731887312839,10.2748397,236.81,236.78,22.1684]
[1731887314404,10.2748397,236.81,236.78,26.3916]
[1731887315014,10.2748397,236.81,236.78,22.1684]
[1731887317437,10.2748397,236.84,236.79,14.7809]
[1731887317619,4.2202,236.95,236.79,25.0557397]
[1731887317935,10.2748397,236.89,236.79,25.0557397]
[1731887319535,10.2748397,236.93,236.84,10.2748397]
[1731887320112,10.2748397,236.91,236.82,10.2748397]
[1731887320433,4.31337462,236.98,236.79,35.8966]
[1731887320434,10.2748397,236.89,236.8,10.2748397]
[1731887320731,10.2748397,236.89,236.81,14.7796]
[1731887323526,0.09367462,236.86,236.81,14.7796]
[1731887323730,10.2748397,236.85,236.81,14.7796]
[1731887324916,10.2748397,236.85,236.81,10.5569]
[1731887329443,20.0,236.87,236.81,10.5569]
[1731887329649,20.0,236.87,236.82,10.2748397]
[1731887329946,20.09367462,236.88,236.81,10.5569]
[1731887330647,20.0,236.86,236.81,10.5569]
[1731887331243,20.0,236.86,236.81,14.7796]
[1731887331637,20.09367462,236.91,236.81,14.7796]
[1731887331845,20.34465462,236.88,236.81,14.7796]
[1731887334748,10.2748397,236.85,236.81,14.7796]
[1731887335529,20.25098,236.88,236.81,14.7796]
[1731887336443,0.09367462,236.88,236.81,14.7796]
[1731887336627,0.34465462,236.88,236.81,14.7796]
[1731887336826,20.0,236.9,236.84,10.2748397]
[1731887337024,0.09367462,236.92,236.86,10.2748397]
[1731887337422,10.2748397,236.95,236.87,21.748]
[1731887338046,0.09367462,236.94,236.87,21.748]
[1731887338550,10.2748397,236.99,236.91,10.2748397]
[1731887338929,10.2748397,236.99,236.89,10.2748397]
[1731887339687,10.2748397,237.01,236.93,10.2748397]
[1731887339833,0.09367462,237.0,236.93,10.2748397]
[1731887340033,10.2748397,237.01,236.93,10.2748397]
[1731887340646,20.09367462,237.0,236.94,14.7715]
[1731887341149,0.25098,236.99,236.94,14.7715]
[1731887342930,10.5258197,236.99,236.91,10.2748397]
[1731887344451,10.5258197,236.99,236.92,14.7728]
[1731887345752,0.25098,236.99,236.92,14.7728]
[1731887347651,20.0,237.04,236.96,23.0578]
[1731887347861,0.25098,237.03,236.97,10.2748397]
[1731887348151,20.0,237.04,236.97,10.2748397]
[1731887348335,10.2748397,237.05,236.97,10.2748397]
[1731887349746,8.40586501,237.1,236.98,14.7691]
[1731887349747,10.2748397,237.03,236.98,14.7691]
[1731887352655,10.2748397,237.01,236.98,10.5494]
[1731887352837,10.2748397,236.99,236.98,10.5494]
[1731887353238,10.2748397,236.99,236.96,23.0578]
[1731887353441,20.34465462,236.96,236.84,10.2748397]
[1731887353741,10.2748397,236.93,236.81,21.1139]
[1731887354139,10.2748397,236.93,236.85,10.2748397]
[1731887354361,10.2748397,236.93,236.86,6.6076]
[1731887354660,10.2748397,236.93,236.87,16.4502]
[1731887354829,10.2748397,236.95,236.87,26.7250397]
[1731887355036,10.2748397,236.97,236.89,10.2748397]
[1731887355239,10.2748397,236.99,236.91,10.2748397]
[1731887355440,10.2748397,236.99,236.87,16.4502]
[1731887355441,0.21916462,236.99,236.94,6.6076]
[1731887356436,0.21916462,236.99,236.95,4.2202]
[1731887357044,0.21916462,236.99,236.95,14.7709]
[1731887357239,0.21916462,236.97,236.95,10.5507]
[1731887357458,0.12549,236.98,236.95,10.5507]
[1731887357459,0.12549,236.98,236.95,14.7709]
[1731887357960,0.25098,236.98,236.95,14.7709]
[1731887358337,0.09367462,236.98,236.95,14.7709]
[1731887359157,0.25098,236.99,236.95,14.7709]
[1731887359381,0.1,237.09,236.96,16.0379]
[1731887359382,4.2182,237.07,236.96,16.0379]
[1731887359557,10.2748397,237.03,236.96,16.0379]
[1731887360250,0.09367462,237.03,236.96,16.0379]
[1731887360467,0.09367462,237.03,236.97,14.7697]
[1731887361269,0.21916462,237.03,236.97,14.7697]
[1731887362053,0.21916462,237.03,236.97,25.0445397]
[1731887362273,20.12549,237.05,236.99,6.56187313]
[1731887362448,20.12549,237.05,236.97,14.7697]
[1731887362449,6.56187313,237.08,237.0,6.56187313]
[1731887362866,4.2176,237.1,237.0,6.56187313]
[1731887363274,0.09367462,237.06,237.0,6.56187313]
[1731887363772,6.68736313,237.05,236.96,16.0379]
[1731887363960,6.81285313,237.05,236.98,14.7691]
[1731887364161,6.81285313,237.05,236.98,21.33097313]
[1731887365770,6.81285313,237.05,236.98,14.7691]
[1731887366263,23.776884,237.11,237.01,6.56187313]
[1731887366475,6.56187313,237.15,237.08,6.5387]
[1731887366772,0.4670731,237.16,237.09,6.56187313]
[1731887367352,0.4670731,237.16,237.08,6.5387]
[1731887367561,0.4670731,237.16,237.09,6.56187313]
[1731887368148,0.4670731,237.16,237.13,6.56187313]
[1731887368353,0.4670731,237.16,237.14,10.23957956]
[1731887369866,0.4670731,237.16,237.11,35.8482]
[1731887370171,0.4670731,237.16,237.11,46.08777956]
[1731887370351,0.4670731,237.16,237.11,35.8482]
[1731887370553,0.4670731,237.16,237.11,46.08777956]
[1731887370755,10.58423418,237.15,237.11,10.5436]
[1731887371294,10.58423418,237.15,237.11,14.761]
[1731887373968,0.34465462,237.15,237.11,10.5436]
[1731887374171,10.58423418,237.15,237.11,10.5436]
[1731887374565,10.58423418,237.15,237.11,14.761]
[1731887375251,0.4670731,237.16,237.11,14.761]
[1731887377679,0.4670731,237.16,237.14,10.23957956]
[1731887378082,0.4670731,237.16,237.15,20.0]
[1731887378254,0.4670731,237.16,237.15,26.5387]
[1731887379153,10.23957956,237.26,237.16,16.0379]
[1731887379379,0.09367462,237.26,237.19,10.23957956]
[1731887379577,0.21916462,237.26,237.19,10.23957956]
[1731887379767,0.12549,237.26,237.19,10.23957956]
[1731887380170,0.21916462,237.26,237.19,10.23957956]
[1731887380373,0.21916462,237.26,237.2,14.7554]
[1731887382174,20.0,237.32,237.21,10.23957956]
[1731887382474,10.33325418,237.29,237.21,10.23957956]
[1731887382787,20.0,237.28,237.21,10.23957956]
[1731887383488,20.0,237.28,237.22,14.7541]
[1731887384372,0.09367462,237.24,237.17,14.7569]
[1731887384582,4.30827462,237.27,237.17,14.7569]
[1731887384583,0.09367462,237.22,237.17,14.7569]
[1731887384781,0.34465462,237.22,237.17,14.7569]
[1731887386280,44.12153862,237.17,237.04,14.7649]
[1731887386485,10.23957956,237.13,237.04,14.7649]
[1731887386791,10.23957956,237.13,237.05,10.23957956]
[1731887387389,10.58423418,237.17,237.07,10.23957956]
[1731887387591,20.0,237.16,237.07,10.23957956]
[1731887387981,20.0,237.16,237.06,20.78537956]
[1731887387982,10.23957956,237.15,237.06,20.78537956]
[1731887388793,10.23957956,237.15,237.08,10.23957956]
[1731887389094,20.34465462,237.14,237.06,10.5458]
[1731887389306,20.0,237.14,237.07,10.23957956]
[1731887389668,10.23957956,237.15,237.07,10.23957956]
[1731887390070,0.09367462,237.16,237.07,10.23957956]
[1731887390373,0.21916462,237.16,237.07,10.23957956]
[1731887391290,0.21916462,237.16,237.08,14.7628]
[1731887391491,10.23957956,237.19,237.11,10.23957956]
[1731887391675,0.25098,237.2,237.13,10.23957956]
[1731887391875,0.09367462,237.19,237.13,10.23957956]
[1731887393691,0.09367462,237.19,237.14,22.2319]
[1731887394879,20.25098,237.2,237.14,26.4487]
[1731887395883,10.23957956,237.23,237.16,10.23957956]
[1731887396098,0.12549,237.24,237.18,10.23957956]
[1731887396406,14.45417956,237.27,237.18,10.23957956]
[1731887396987,10.23957956,237.23,237.14,36.9909]
[1731887397200,10.23957956,237.21,237.14,47.23047956]
[1731887398478,0.09367462,237.22,237.14,47.23047956]
[1731887398683,20.21916462,237.22,237.14,47.23047956]
[1731887400090,10.23957956,237.21,237.14,47.23047956]
[1731887400486,0.09367462,237.2,237.14,47.23047956]
[1731887400812,10.23957956,237.19,237.14,22.2319]
[1731887401109,0.09367462,237.19,237.14,22.2319]
[1731887401298,0.21916462,237.19,237.14,22.2319]
[1731887402887,10.23957956,237.19,237.14,22.2319]
[1731887403202,0.21916462,237.16,237.09,27.02337956]
[1731887403409,0.21916462,237.16,237.09,16.7838]
[1731887403787,0.34465462,237.12,237.09,6.2395]
[1731887404204,0.21916462,237.1,237.04,10.5464]
[1731887404715,0.21916462,237.1,237.04,14.765]
[1731887405498,10.23957956,237.09,237.04,14.765]
[1731887405698,0.34465462,237.08,237.03,21.6575]
[1731887407112,10.23957956,237.07,237.03,21.6575]
[1731887407297,10.23957956,237.05,236.99,10.5486]
[1731887407499,10.23957956,237.03,236.98,16.4901]
[1731887407805,20.34465462,237.02,236.98,16.4901]
[1731887408006,0.34465462,237.02,236.98,16.4901]
[1731887408206,20.34465462,237.02,236.98,16.4901]
[1731887409296,0.21916462,237.0,236.97,6.0837]
[1731887409502,10.23957956,236.99,236.94,10.5509]
[1731887410113,10.23957956,236.99,236.94,14.7713]
[1731887410495,0.21916462,237.0,236.94,14.7713]
[1731887410695,10.23957956,237.01,236.94,14.7713]
[1731887411095,0.34465462,237.02,236.96,10.23957956]
[1731887411292,10.23957956,237.05,236.96,25.00977956]
[1731887411493,10.23957956,237.09,237.02,10.23957956]
[1731887411795,10.23957956,237.12,237.04,10.23957956]
[1731887411991,4.2169,237.14,237.04,10.23957956]
[1731887412192,10.33325418,237.13,237.04,10.23957956]
[1731887412809,0.09367462,237.11,237.04,14.45817956]
[1731887413008,0.09367462,237.06,237.03,16.4901]
[1731887413309,0.34465462,237.06,237.02,6.0837]
[1731887413702,0.21916462,237.06,237.02,6.0837]
[1731887414109,0.21916462,237.04,237.02,6.0837]
[1731887415188,0.21916462,237.04,236.98,16.4901]
[1731887415189,0.09367462,237.02,236.98,16.4901]
[1731887415394,0.21916462,237.02,236.98,16.4901]
[1731887416823,0.12549,237.03,236.98,16.4901]
[1731887417122,20.0,237.08,237.01,10.23957956]
[1731887417299,0.09367462,237.06,236.99,25.00797956]
[1731887417907,0.09367462,237.13,236.99,25.00797956]
[1731887418116,14.8591,237.14,236.99,25.00797956]
[1731887418117,0.09367462,237.07,236.99,25.00797956]
[1731887418319,0.21916462,237.05,236.99,25.00797956]
[1731887418492,0.12549,237.04,236.99,25.00797956]
[1731887421023,0.12549,237.04,237.01,14.45867956]
[1731887422604,0.12549,237.04,236.99,25.00797956]
[1731887422822,0.21916462,237.03,236.98,16.4901]
[1731887423016,0.09367462,237.01,236.98,16.4901]
[1731887423798,0.21916462,236.99,236.96,6.0837]
[1731887424119,0.21916462,236.98,236.96,6.0837]
[1731887425602,0.21916462,236.98,236.96,10.3037]
[1731887426036,0.25098,237.02,236.96,20.854]
[1731887426209,0.25098,237.02,236.97,10.23957956]
[1731887426408,10.23957956,237.06,236.97,10.23957956]
[1731887426816,0.21916462,237.05,236.98,4.2197]
[1731887427523,0.21916462,237.05,236.98,14.7691]
[1731887427727,0.09367462,237.03,236.98,14.7691]
[1731887428631,0.21916462,237.03,236.98,14.7691]
[1731887428830,0.21916462,237.03,236.89,10.553]
[1731887428831,44.12153862,236.99,236.89,10.553]
[1731887429003,0.21916462,236.93,236.89,10.553]
[1731887430399,10.23957956,236.96,236.89,20.79257956]
[1731887430597,0.25098,236.97,236.91,10.23957956]
[1731887430815,0.21916462,236.98,236.91,10.23957956]
[1731887431019,0.12549,236.97,236.91,10.23957956]
[1731887431401,10.23957956,237.06,236.95,10.23957956]
[1731887431603,10.23957956,237.08,237.0,10.23957956]
[1731887432032,0.09367462,237.05,236.98,14.45917956]
[1731887432526,10.23957956,237.06,236.98,25.00857956]
[1731887432715,0.21916462,237.05,236.98,25.00857956]
[1731887432916,4.2183,237.07,237.01,10.23957956]
[1731887433321,4.2165,237.16,237.05,10.23957956]
[1731887433542,10.23957956,237.13,237.05,10.23957956]
[1731887434049,10.23957956,237.13,237.05,14.45797956]
[1731887434253,16.39598097,237.13,237.05,20.61438097]
[1731887434430,24.027864,237.12,237.05,20.61438097]
[1731887434746,0.25098,237.1,237.05,4.2184]
[1731887434955,0.09367462,237.07,237.03,10.5468]
[1731887435121,0.09367462,237.07,237.03,14.7656]
[1731887436352,16.39598097,237.13,237.05,16.39598097]
[1731887436858,0.09367462,237.1,237.03,31.16158097]
[1731887437660,0.21916462,237.1,237.03,31.16158097]
[1731887438546,0.09367462,237.08,237.03,14.7656]
[1731887438863,0.21916462,237.08,237.03,10.5468]
[1731887440020,0.21916462,237.08,236.99,6.3439]
[1731887440021,0.21916462,237.06,237.0,4.2193]
[1731887440224,0.21916462,237.04,236.99,10.5634]
[1731887443454,0.21916462,237.04,236.99,6.3439]
[1731887443455,0.09367462,237.02,236.99,6.3439]
[1731887443654,0.21916462,237.02,236.99,6.3439]
[1731887444153,20.21916462,237.02,236.99,6.3439]
[1731887444929,0.21916462,237.0,236.99,6.3439]
[1731887445130,0.21916462,237.0,236.95,4.2202]
[1731887446936,0.09367462,236.96,236.94,16.2546]
[1731887447144,0.21916462,236.96,236.94,16.2546]
[1731887447556,0.21916462,236.96,236.94,20.4749]
[1731887447729,0.21916462,236.96,236.94,16.2546]
[1731887448442,0.21916462,236.96,236.94,20.475]
[1731887448743,16.39598097,237.01,236.94,20.475]
[1731887448932,20.25098,237.02,236.95,16.39598097]
[1731887449351,0.09367462,237.01,236.96,4.2201]
[1731887450435,16.39598097,237.05,236.97,16.39598097]
[1731887450633,166.5183,237.06,236.99,16.39598097]
[1731887450834,4.2183,237.06,236.99,16.39598097]
[1731887451356,0.09367462,237.05,236.99,20.61548097]
[1731887451663,16.74063559,237.05,236.99,4.2195]
[1731887452229,0.34465462,237.03,236.99,4.2195]
[1731887454164,20.0,237.09,236.99,4.2195]
[1731887454165,20.61388097,237.09,237.01,16.39598097]
[1731887454339,0.09367462,237.08,237.01,16.39598097]
[1731887454541,0.09367462,237.06,236.99,20.61548097]
[1731887455159,0.34465462,237.06,236.99,4.2195]
[1731887455457,20.34465462,237.06,236.99,14.7684]
[1731887456351,30.59863134,237.06,236.99,14.7684]
[1731887456553,4.2175,237.11,237.01,10.25397672]
[1731887456752,4.2168,237.15,237.05,10.25397672]
[1731887457058,4.2168,237.15,237.03,10.25397672]
[1731887457059,10.34765134,237.11,237.03,10.25397672]
[1731887457254,0.09367462,237.09,237.03,10.25397672]
[1731887457464,0.09367462,237.09,237.01,25.99067672]
[1731887457964,0.34465462,237.09,237.02,4.219]
[1731887460262,10.59863134,237.09,237.02,4.219]
[1731887460771,0.34465462,237.07,237.02,4.219]
[1731887464073,0.34465462,237.07,237.02,14.7666]
[1731887475367,10.25397672,237.11,237.03,10.25397672]
[1731887475674,10.25397672,237.17,237.1,15.3887]
[1731887476554,0.09367462,237.16,237.11,4.2174]
[1731887476987,0.21916462,237.16,237.11,4.2174]
[1731887477354,0.21916462,237.16,237.11,14.761]
[1731887483379,10.25397672,237.15,237.11,14.761]
[1731887483592,10.25397672,237.13,237.1,15.3887]
[1731887484689,0.21916462,237.12,237.1,15.3887]
[1731887485193,0.12549,237.09,237.03,14.7659]
[1731887485374,10.37946672,237.09,237.03,14.7659]
[1731887487272,10.37946672,237.09,237.03,10.5471]
[1731887487994,0.12549,237.12,237.06,10.25397672]
[1731887488377,10.25397672,237.19,237.1,10.25397672]
[1731887488576,10.25397672,237.19,237.12,10.25397672]
[1731887488785,14.46997672,237.19,237.1,10.25397672]
[1731887488999,14.46997672,237.19,237.09,16.6544]
[1731887489296,10.25397672,237.19,237.1,25.01557672]
[1731887490091,10.25397672,237.19,237.12,10.25397672]
[1731887490292,0.4669,237.26,237.18,10.25397672]
[1731887490293,10.25397672,237.26,237.18,10.25397672]
[1731887490501,10.25397672,237.28,237.19,16.6544]
[1731887490670,10.25397672,237.28,237.2,10.25397672]
[1731887491073,0.09367462,237.27,237.2,10.25397672]
[1731887491278,0.09367462,237.27,237.21,4.2156]
[1731887491603,0.09367462,237.29,237.21,4.2156]
[1731887491780,0.09367462,237.27,237.21,4.2156]
[1731887491981,0.25098,237.27,237.21,4.2156]
[1731887493707,0.09367462,237.26,237.21,4.2156]
[1731887494496,10.34765134,237.26,237.2,10.5394]
[1731887494701,0.12549,237.25,237.2,10.5394]
[1731887495599,0.12549,237.25,237.2,14.7552]
[1731887496408,0.09367462,237.24,237.2,14.7552]
[1731887496717,0.21916462,237.21,237.19,16.6544]
[1731887497007,10.25397672,237.2,237.19,16.6544]
[1731887499504,0.21916462,237.21,237.19,16.6544]
[1731887500496,10.25397672,237.22,237.19,16.6544]
[1731887500787,0.09367462,237.22,237.19,16.6544]
[1731887501285,0.12549,237.25,237.19,41.66427672]
[1731887501485,14.46847672,237.28,237.19,41.66427672]
[1731887501724,10.25397672,237.26,237.19,41.66427672]
[1731887503099,0.12549,237.25,237.19,41.66427672]
[1731887503997,0.12549,237.25,237.19,31.4103]
[1731887504200,0.09367462,237.24,237.19,31.4103]
[1731887504512,10.34765134,237.24,237.19,31.4103]
[1731887509520,10.47314134,237.2,237.17,6.4598]
[1731887509827,10.25397672,237.18,237.17,6.4598]
[1731887511317,10.34765134,237.2,237.15,14.7584]
[1731887513725,0.09367462,237.2,237.15,14.7584]
[1731887513907,10.25397672,237.24,237.16,10.25397672]
[1731887514803,0.21916462,237.21,237.15,14.7584]
[1731887515503,10.25397672,237.2,237.15,14.7584]
[1731887517298,0.09367462,237.21,237.15,14.7584]
[1731887519720,10.25397672,237.2,237.15,10.5417]
[1731887520918,0.12549,237.2,237.15,10.5417]
[1731887521420,0.09367462,237.17,237.13,15.2119]
[1731887521798,10.34765134,237.17,237.13,15.2119]
[1731887522220,6.65098934,237.15,237.11,10.5436]
[1731887523407,6.65098934,237.15,237.11,14.761]
[1731887524426,10.33933613,237.15,237.11,14.761]
[1731887525924,10.24566151,237.13,237.08,19.4298]
[1731887526931,10.24566151,237.13,237.08,29.9747]
[1731887527128,0.34465462,237.12,237.05,10.24566151]
[1731887527301,10.24566151,237.09,237.04,21.2056]
[1731887527500,0.12549,237.14,237.08,10.24566151]
[1731887528015,0.12549,237.14,237.09,4.2178]
[1731887529496,162.7669,237.23,237.09,4.2178]
[1731887529497,162.3,237.27,237.11,10.24566151]
[1731887529829,10.24566151,237.21,237.13,10.24566151]
[1731887530013,0.09367462,237.2,237.14,4.2169]
[1731887530424,0.09367462,237.18,237.11,10.24566151]
[1731887530723,0.09367462,237.18,237.12,15.2239]
[1731887531114,0.09367462,237.19,237.12,15.2239]
[1731887531507,0.09367462,237.15,237.1,14.7616]
[1731887531705,0.21916462,237.15,237.1,14.7616]
[1731887532506,0.09367462,237.15,237.1,14.7616]
[1731887532723,0.09367462,237.15,237.11,10.24566151]
[1731887532919,20.0,237.23,237.11,10.24566151]
[1731887533118,0.25098,237.2,237.13,10.24566151]
[1731887533334,0.09367462,237.19,237.13,10.24566151]
[1731887534134,0.09367462,237.17,237.12,4.2171]
[1731887535947,0.12549,237.16,237.1,10.544]
[1731887537938,0.12549,237.16,237.1,14.7616]
[1731887538402,0.09367462,237.15,237.1,14.7616]
[1731887538608,10.33933613,237.11,237.06,36.4282]
[1731887542529,10.24566151,237.17,237.09,10.24566151]
[1731887543222,0.09367462,237.16,237.07,10.24566151]
[1731887543406,10.24566151,237.15,237.07,10.24566151]
[1731887543604,10.24566151,237.15,237.08,14.7628]
[1731887543810,0.34465462,237.14,237.08,14.7628]
[1731887545416,10.24566151,237.17,237.08,14.7628]
[1731887545631,0.12549,237.16,237.09,10.24566151]
[1731887545929,0.21916462,237.16,237.09,10.24566151]
[1731887546333,0.21916462,237.16,237.09,6.55580803]
[1731887546538,0.09367462,237.16,237.1,14.7616]
[1731887546840,0.12549,237.14,237.1,10.544]
[1731887548238,4.2156,237.21,237.12,6.55580803]
[1731887548417,6.55580803,237.2,237.12,6.55580803]
[1731887548625,6.55580803,237.18,237.1,17.09980803]
[1731887548939,0.09367462,237.17,237.1,17.09980803]
[1731887549124,0.09367462,237.15,237.1,10.544]